[Event "GER-chT Youth Countries 2018"]
[Site "Wurzburg"]
[Date "2018.10.04"]
[Round "3"]
[White "Langer, Paul Georg"]
[Black "Keymer, Cecilia"]
[Result "1-0"]
[ECO "C54"]
[WhiteElo "1348"]
[BlackElo "1479"]
[Annotator "NA RC"]
[PlyCount "63"]
[EventDate "2018.10.03"]
[EventType "team-tourn"]
[EventCountry "GER"]
[SourceTitle "playchess.com"]
[Source "ChessBase"]
[SourceQuality "1"]
[TimeControl "40/5400+30:1800+30"]

1. e4 {[%emt 0:00:00]} e5 {[%emt 0:00:00]} 2. Nf3 {[%emt 0:00:00]} Nc6 {[%emt 0:00:00]} 3. Bc4 {[%emt 0:00:00]} Bc5 {[%emt 0:00:00]} 4. c3 {[%emt 0:00:00]} Nf6 {[%emt 0:00:00]} 5. d4 {[%emt 0:00:10]} exd4 {[%emt 0:00:02]} 6. e5 {[%emt 0:00:08]} d5 {[%emt 0:03:06]} 7. Bb5 {[%emt 0:00:10]} Nd7 {[%emt 0:07:37]} 8. cxd4 {[%emt 0:00:38]} Bb4+ {[%emt 0:02:58]} 9. Bd2 {[%emt 0:00:24]} Bxd2+ {[%emt 0:01:46]} 10. Nbxd2 {[%emt 0:00:44]} Ne7 {[%emt 0:03:22]} 11. O-O {[%emt 0:01:57]} c6 {[%emt 0:01:51]} 12. Bd3 {[%emt 0:01:04]} h6 {[%emt 0:04:25]} 13. Re1 {[%emt 0:02:25]} Nb6 {[%emt 0:02:27]} 14. Nh4 {[%emt 0:08:09]} Be6 {[%emt 0:05:57]} 15. f4 {[%emt 0:02:23]} Qc8 {[%emt 0:05:17]} 16. Qf3 {[%emt 0:06:26]} g6 {[%emt 0:07:21]} 17. h3 {[%emt 0:02:36]} Nf5 {[%emt 0:01:38]} 18. Nxf5 {[%emt 0:01:06]} Bxf5 {[%emt 0:02:31]} 19. g4 {[%emt 0:01:14]} Bd7 {[%emt 0:06:20]} 20. Re2 {[%emt 0:02:00]} Kd8 {[%emt 0:03:50]} 21. Rf1 {[%emt 0:01:57]} Rg8 {[%emt 0:03:53]} 22. Kh1 {[%emt 0:00:58]} Kc7 {[%emt 0:03:05]} 23. f5 {[%emt 0:01:59]} g5 {[%emt 0:01:38]} 24. e6 {[%emt 0:04:33]} fxe6 {[%emt 0:02:44]} 25. fxe6 {[%emt 0:00:30]} Bxe6 {[%emt 0:01:19]} 26. Qg3+ {[%emt 0:00:17]} Kd8 {[%emt 0:04:51]} 27. Qd6+ {[%emt 0:00:19]} Bd7 {[%emt 0:01:45]} 28. Bh7 {[%emt 0:05:32]} Rh8 {[%emt 0:02:25]} 29. Qf6+ {[%emt 0:02:30]} Kc7 {[%emt 0:00:39]} 30. Qe5+ {[%emt 0:00:07]} Kd8 {[%emt 0:00:54]} 31. Qxh8+ {[%emt 0:00:08]} Kc7 {[%emt 0:01:35]} 32. Qe5+ {[%emt 0:00:10]} 1-0

[Event "GER-chT Youth Countries 2018"]
[Site "Wurzburg"]
[Date "2018.10.04"]
[Round "3"]
[White "Schwenke, Mia"]
[Black "Fischer, Darja"]
[Result "0-1"]
[ECO "B18"]
[WhiteElo "1203"]
[BlackElo "1456"]
[Annotator "NA RC"]
[PlyCount "58"]
[EventDate "2018.10.03"]
[EventType "team-tourn"]
[EventCountry "GER"]
[SourceTitle "playchess.com"]
[Source "ChessBase"]
[SourceQuality "1"]
[TimeControl "40/5400+30:1800+30"]

1. e4 {[%emt 0:00:00]} c6 {[%emt 0:00:00]} 2. d4 {[%emt 0:00:00]} d5 {[%emt 0:00:00]} 3. Nc3 {[%emt 0:00:30]} dxe4 {[%emt 0:00:00]} 4. Nxe4 {[%emt 0:00:39]} Bf5 {[%emt 0:00:09]} 5. Ng3 {[%emt 0:00:27]} Bg6 {[%emt 0:00:12]} 6. N1e2 {[%emt 0:00:18]} Nd7 {[%emt 0:02:35]} 7. Nf4 {[%emt 0:01:07]} e6 {[%emt 0:01:57]} 8. h4 {[%emt 0:01:41]} Ngf6 {[%emt 0:04:57]} 9. Bd3 {[%emt 0:06:45]} Bxd3 {[%emt 0:01:20]} 10. Qxd3 {[%emt 0:00:39]} Bd6 {[%emt 0:01:26]} 11. O-O {[%emt 0:17:23]} Qc7 {[%emt 0:06:40]} 12. Nge2 {[%emt 0:03:52]} h6 {[%emt 0:03:42]} 13. g3 {[%emt 0:02:18]} O-O-O {[%emt 0:03:07]} 14. c4 {[%emt 0:02:52]} g5 {[%emt 0:04:27]} 15. c5 {[%emt 0:05:41]} Bxf4 {[%emt 0:05:43]} 16. Bxf4 {[%emt 0:01:06]} gxf4 {[%emt 0:00:44]} 17. Nxf4 {[%emt 0:00:38]} Rdg8 {[%emt 0:00:34]} 18. Qe3 {[%emt 0:03:12]} Rg4 {[%emt 0:01:13]} 19. Kh1 {[%emt 0:04:12]} e5 {[%emt 0:01:17]} 20. dxe5 {[%emt 0:03:09]} Qxe5 {[%emt 0:01:11]} 21. Qxe5 {[%emt 0:29:25]} Nxe5 {[%emt 0:00:08]} 22. Rad1 {[%emt 0:03:44]} Rd8 {[%emt 0:01:50]} 23. Ra1 {[%emt 0:06:34]} Rd2 {[%emt 0:01:38]} 24. b3 {[%emt 0:03:25]} Ne4 {[%emt 0:00:49]} 25. Nh3 {[%emt 0:01:48]} Nxc5 {[%emt 0:01:03]} 26. Rfe1 {[%emt 0:00:47]} Ncd3 {[%emt 0:01:02]} 27. Rf1 {[%emt 0:00:36]} Nf3 {[%emt 0:00:58]} 28. a4 {[%emt 0:00:37]} Re4 {[%emt 0:00:52]} 29. b4 {[%emt 0:00:34]} Rxb4 {[%emt 0:00:47]} 0-1

[Event "GER-chT Youth Countries 2018"]
[Site "Wurzburg"]
[Date "2018.10.05"]
[Round "4"]
[White "Lagunow, Raphael"]
[Black "Urban, Konstantin"]
[Result "1/2-1/2"]
[ECO "B96"]
[WhiteElo "2417"]
[BlackElo "2279"]
[Annotator "NA"]
[PlyCount "67"]
[EventDate "2018.10.03"]
[EventType "team-tourn"]
[EventCountry "GER"]
[SourceTitle "playchess.com"]
[Source "ChessBase"]
[SourceQuality "1"]
[TimeControl "40/5400+30:1800+30"]

1. e4 {[%emt 0:00:00]} c5 {[%emt 0:00:00]} 2. Nf3 {[%emt 0:00:00]} d6 {[%emt 0:00:00]} 3. d4 {[%emt 0:00:00]} cxd4 {[%emt 0:00:00]} 4. Nxd4 {[%emt 0:00:00]} Nf6 {[%emt 0:00:00]} 5. Nc3 {[%emt 0:00:00]} a6 {[%emt 0:00:00]} 6. Bg5 {[%emt 0:00:06]} e6 {[%emt 0:00:32]} 7. f4 {[%emt 0:00:10]} Nbd7 {[%emt 0:00:38]} 8. Qe2 {[%emt 0:00:59]} Qc7 {[%emt 0:00:46]} 9. O-O-O {[%emt 0:00:32]} b5 {[%emt 0:00:25]} 10. a3 {[%emt 0:01:15]} Bb7 {[%emt 0:00:49]} 11. g4 {[%emt 0:00:43]} Rc8 $14 {[%emt 0:05:16] LiveBook: 9 Partien} 12. Bxf6 {[%emt 0:14:23]} Nxf6 {[%emt 0:00:42]} 13. g5 {[%emt 0:00:46]} Nd7 {[%emt 0:00:21]} 14. h4 {[%emt 0:02:01]} Be7 {[%emt 0:02:24]} 15. Rh3 {[%emt 0:01:36]} Nb6 {[%emt 0:02:43]} 16. Kb1 {[%emt 0:03:00]} O-O {[%emt 0:12:04]} 17. Bg2 {[%emt 0:17:44]} Qc4 {[%emt 0:03:47]} 18. Qg4 {[%emt 0:02:41]} Rfe8 {[%emt 0:13:03]} 19. g6 {[%emt 0:15:08]} Bf8 {[%emt 0:12:09]} 20. gxf7+ {[%emt 0:01:59]} Kxf7 {[%emt 0:00:18]} 21. h5 {[%emt 0:08:24]} Nd7 {[%emt 0:06:44]} 22. Bf1 {[%emt 0:02:28]} Nf6 {[%emt 0:02:07]} 23. Qh4 {[%emt 0:05:24]} Qc5 {[%emt 0:02:34]} 24. Nb3 {[%emt 0:00:17]} Qc7 {[%emt 0:01:44]} 25. Bd3 {[%emt 0:01:04]} h6 {[%emt 0:04:37]} 26. e5 {[%emt 0:01:13]} dxe5 {[%emt 0:00:40]} 27. Bg6+ {[%emt 0:00:21]} Kg8 {[%emt 0:00:09]} 28. Bxe8 {[%emt 0:00:13]} Rxe8 {[%emt 0:00:33]} 29. fxe5 {[%emt 0:02:01]} Qxe5 {[%emt 0:00:06]} 30. Re1 {[%emt 0:02:54]} Qg5 {[%emt 0:04:01]} 31. Qf2 {[%emt 0:04:09]} Qg2 {[%emt 0:05:50]} 32. Qh4 {[%emt 0:06:38]} Qg5 {[%emt 0:00:39]} 33. Qf2 {[%emt 0:01:12]} Qg2 {[%emt 0:00:05]} 34. Qh4 {[%emt 0:01:41]} 1/2-1/2

[Event "GER-chT Youth Countries 2018"]
[Site "Wurzburg"]
[Date "2018.10.05"]
[Round "4"]
[White "Gschnitzer, Adrian"]
[Black "Degenhard, Simon"]
[Result "1-0"]
[ECO "B43"]
[WhiteElo "2363"]
[BlackElo "2207"]
[Annotator "NA"]
[PlyCount "75"]
[EventDate "2018.10.03"]
[EventType "team-tourn"]
[EventCountry "GER"]
[SourceTitle "playchess.com"]
[Source "ChessBase"]
[SourceQuality "1"]
[TimeControl "40/5400+30:1800+30"]

1. e4 {[%emt 0:00:00]} c5 {[%emt 0:00:00]} 2. Nf3 {[%emt 0:00:00]} a6 {[%emt 0:00:00]} 3. Nc3 {[%emt 0:00:00]} e6 {[%emt 0:00:00]} 4. d4 {[%emt 0:00:02]} cxd4 {[%emt 0:00:02]} 5. Nxd4 {[%emt 0:00:05]} Qc7 {[%emt 0:00:06]} 6. Bd3 {[%emt 0:00:11]} Nf6 {[%emt 0:00:16]} 7. O-O {[%emt 0:00:17]} Bc5 {[%emt 0:00:17]} 8. Nb3 {[%emt 0:00:11]} Be7 {[%emt 0:00:08]} 9. f4 {[%emt 0:00:13]} d6 {[%emt 0:00:05]} 10. a4 {[%emt 0:00:18]} Nc6 {[%emt 0:00:48]} 11. a5 {[%emt 0:00:24]} b5 {[%emt 0:02:00]} 12. axb6 {[%emt 0:00:11]} Qxb6+ {[%emt 0:00:07]} 13. Kh1 {[%emt 0:00:09]} a5 $14 {[%emt 0:07:24]} 14. Qf3 {[%emt 0:07:50]} Rb8 {[%emt 0:02:03]} 15. Be3 {[%emt 0:03:33]} Qc7 {[%emt 0:21:20]} 16. Nb5 {[%emt 0:01:40]} Qd7 {[%emt 0:04:52]} 17. Nxa5 {[%emt 0:05:25]} Nb4 {[%emt 0:05:51]} 18. Ba7 {[%emt 0:23:22]} Rxb5 {[%emt 0:03:20]} 19. Bxb5 {[%emt 0:00:06]} Qxb5 {[%emt 0:00:10]} 20. Qb3 {[%emt 0:00:15]} Qd7 {[%emt 0:07:10]} 21. Qxb4 {[%emt 0:00:50]} Qxa7 {[%emt 0:00:14]} 22. Nc6 {[%emt 0:04:57]} Qb7 {[%emt 0:06:18]} 23. Qc4 {[%emt 0:05:32]} Bd7 {[%emt 0:02:34]} 24. Nxe7 {[%emt 0:02:48]} Kxe7 {[%emt 0:00:02]} 25. e5 {[%emt 0:00:45]} Ne4 {[%emt 0:04:18]} 26. exd6+ {[%emt 0:06:34]} Nxd6 {[%emt 0:00:15]} 27. Qd4 {[%emt 0:00:34]} Rc8 {[%emt 0:02:37]} 28. Rfd1 {[%emt 0:07:11]} Qb8 {[%emt 0:06:40]} 29. Ra6 {[%emt 0:06:28]} Bc6 {[%emt 0:03:41]} 30. c4 {[%emt 0:08:20]} Bxg2+ {[%emt 0:02:50]} 31. Kg1 {[%emt 0:00:01]} Bc6 {[%emt 0:01:17]} 32. b3 {[%emt 0:08:45]} Qc7 {[%emt 0:05:02]} 33. Qc5 {[%emt 0:02:42]} h6 {[%emt 0:07:34]} 34. b4 {[%emt 0:01:14]} g6 {[%emt 0:03:03]} 35. Ra7 {[%emt 0:02:20]} Bb7 {[%emt 0:00:27]} 36. Rxd6 {[%emt 0:00:19]} Qb8 {[%emt 0:01:19]} 37. Rxb7+ {[%emt 0:01:24]} Qxb7 {[%emt 0:00:09]} 38. Rb6+ {[%emt 0:00:17]} 1-0

[Event "GER-chT Youth Countries 2018"]
[Site "Wurzburg"]
[Date "2018.10.05"]
[Round "4"]
[White "Nothnagel, Marian Can"]
[Black "Ewert, Hannes"]
[Result "1/2-1/2"]
[ECO "C54"]
[WhiteElo "2341"]
[BlackElo "2314"]
[Annotator "NA"]
[PlyCount "47"]
[EventDate "2018.10.03"]
[EventType "team-tourn"]
[EventCountry "GER"]
[SourceTitle "playchess.com"]
[Source "ChessBase"]
[SourceQuality "1"]
[TimeControl "40/5400+30:1800+30"]

1. e4 {[%emt 0:00:00]} e5 {[%emt 0:00:00]} 2. Nf3 {[%emt 0:00:00]} Nc6 {[%emt 0:00:00]} 3. d4 {[%emt 0:00:00]} exd4 {[%emt 0:00:09]} 4. Bc4 {[%emt 0:00:00]} Bc5 {[%emt 0:01:16]} 5. c3 {[%emt 0:00:06]} Nf6 {[%emt 0:01:52]} 6. e5 {[%emt 0:00:36]} d5 {[%emt 0:00:06]} 7. Bb5 {[%emt 0:00:05]} Ne4 {[%emt 0:00:07]} 8. cxd4 {[%emt 0:00:04]} Bb6 {[%emt 0:01:01]} 9. O-O {[%emt 0:04:46]} O-O {[%emt 0:01:40]} 10. Be3 $11 {[%emt 0:07:33] LiveBook: 18 Games} Bg4 {[%emt 0:07:01]} 11. Nc3 {[%emt 0:02:37]} f6 {[%emt 0:06:30]} 12. exf6 {[%emt 0:04:43]} Nxc3 {[%emt 0:04:11]} 13. bxc3 {[%emt 0:00:07]} Qxf6 {[%emt 0:00:08]} 14. Be2 {[%emt 0:00:36]} Rae8 {[%emt 0:13:28]} 15. h3 {[%emt 0:12:18]} Bh5 {[%emt 0:02:52]} 16. Qd2 {[%emt 0:01:25]} Qd6 {[%emt 0:10:04]} 17. Rae1 {[%emt 0:05:07]} Bxf3 {[%emt 0:19:15]} 18. Bxf3 {[%emt 0:00:07]} Ne7 {[%emt 0:00:35]} 19. Bg4 {[%emt 0:05:23]} c6 {[%emt 0:03:30]} 20. g3 {[%emt 0:02:14]} Ng6 {[%emt 0:05:15]} 21. h4 {[%emt 0:02:59]} Nxh4 {[%emt 0:07:13]} 22. gxh4 {[%emt 0:01:12]} Qg6 {[%emt 0:00:12]} 23. Bg5 {[%emt 0:02:30]} h6 {[%emt 0:03:12]} 24. Rxe8 {[%emt 0:26:11]} 1/2-1/2

[Event "GER-chT Youth Countries 2018"]
[Site "Wurzburg"]
[Date "2018.10.05"]
[Round "4"]
[White "Kololli, Martin"]
[Black "Browning, Alex"]
[Result "1-0"]
[ECO "B22"]
[WhiteElo "2331"]
[BlackElo "2150"]
[Annotator "NA"]
[PlyCount "112"]
[EventDate "2018.10.03"]
[EventType "team-tourn"]
[EventCountry "GER"]
[SourceTitle "playchess.com"]
[Source "ChessBase"]
[SourceQuality "1"]
[TimeControl "40/5400+30:1800+30"]

1. e4 {[%emt 0:00:00]} c5 {[%emt 0:00:00]} 2. c3 {[%emt 0:00:00]} Nf6 {[%emt 0:00:00]} 3. e5 {[%emt 0:00:00]} Nd5 {[%emt 0:00:00]} 4. d4 {[%emt 0:00:00]} cxd4 {[%emt 0:00:00]} 5. Nf3 {[%emt 0:00:00]} Nc6 {[%emt 0:00:00]} 6. Bc4 {[%emt 0:00:59]} Nb6 {[%emt 0:00:05]} 7. Bb3 {[%emt 0:00:11]} d5 {[%emt 0:00:12]} 8. exd6 {[%emt 0:00:18]} Qxd6 {[%emt 0:00:15]} 9. O-O {[%emt 0:00:37]} Be6 {[%emt 0:00:11]} 10. Na3 {[%emt 0:01:17]} a6 {[%emt 0:06:13]} 11. Bxe6 {[%emt 0:05:39]} Qxe6 {[%emt 0:00:23]} 12. Nxd4 {[%emt 0:01:17]} Nxd4 {[%emt 0:00:12]} 13. Qxd4 {[%emt 0:00:47] LiveBook: 26 Games} Rd8 $11 {[%emt 0:01:08]} 14. Qh4 {[%emt 0:06:57]} Nd5 {[%emt 0:14:47]} 15. Rd1 {[%emt 0:17:44]} Qc6 {[%emt 0:11:26]} 16. c4 {[%emt 0:06:09]} Nf6 {[%emt 0:00:47]} 17. Rxd8+ {[%emt 0:02:31]} Kxd8 {[%emt 0:00:08]} 18. Bg5 {[%emt 0:01:38]} Kc8 {[%emt 0:03:30]} 19. Qh3+ {[%emt 0:21:12]} e6 {[%emt 0:01:29]} 20. Nc2 {[%emt 0:06:57]} Qe4 {[%emt 0:09:57]} 21. Qc3 {[%emt 0:05:06]} Bc5 {[%emt 0:10:19]} 22. Be3 {[%emt 0:03:41]} Bxe3 {[%emt 0:03:42]} 23. Nxe3 {[%emt 0:00:08]} Rd8 {[%emt 0:00:19]} 24. Re1 {[%emt 0:03:27]} Qf4 {[%emt 0:03:32]} 25. f3 {[%emt 0:04:10]} h5 {[%emt 0:16:47]} 26. Rd1 {[%emt 0:05:01]} Rxd1+ {[%emt 0:01:14]} 27. Nxd1 {[%emt 0:00:10]} h4 {[%emt 0:01:34]} 28. b3 {[%emt 0:00:30]} Nd7 {[%emt 0:05:38]} 29. Qe3 {[%emt 0:02:25]} Qd6 {[%emt 0:00:31]} 30. Nf2 {[%emt 0:00:35]} f5 {[%emt 0:02:15]} 31. h3 {[%emt 0:01:22]} Kc7 {[%emt 0:03:17]} 32. Kf1 {[%emt 0:02:14]} b6 {[%emt 0:01:44]} 33. Ke2 {[%emt 0:01:15]} a5 {[%emt 0:00:50]} 34. Nd3 {[%emt 0:01:20]} Qg3 {[%emt 0:02:26]} 35. Nf4 {[%emt 0:00:24]} e5 {[%emt 0:00:34]} 36. Nd5+ {[%emt 0:00:16]} Kd6 {[%emt 0:00:08]} 37. Kf1 {[%emt 0:00:27]} Nc5 {[%emt 0:01:40]} 38. Nxb6 {[%emt 0:00:40]} Ne6 {[%emt 0:00:59]} 39. Qd2+ {[%emt 0:01:19]} Nd4 {[%emt 0:00:12]} 40. Qxa5 {[%emt 0:00:00]} Qf4 41. Qa3+ {[%emt 0:02:36]} Ke6 {[%emt 0:03:00]} 42. Nd5 Qg5 {[%emt 0:00:17]} 43. f4 {[%emt 0:07:53]} exf4 {[%emt 0:01:48]} 44. Qc1 {[%emt 0:03:26]} Qg3 {[%emt 0:02:13]} 45. Qd2 {[%emt 0:05:31]} Ke5 {[%emt 0:06:02]} 46. Nb4 {[%emt 0:04:54]} Ke4 {[%emt 0:04:12]} 47. Nc2 {[%emt 0:00:06]} Nxc2 48. Qxc2+ Ke5 {[%emt 0:08:51]} 49. c5 {[%emt 0:02:02]} Qe3 {[%emt 0:06:42]} 50. Qe2 g5 51. Qxe3+ {[%emt 0:07:36]} fxe3 {[%emt 0:01:00]} 52. Ke2 {[%emt 0:00:32]} Kd5 {[%emt 0:01:40]} 53. Kxe3 {[%emt 0:01:28]} Kxc5 {[%emt 0:00:06]} 54. a4 {[%emt 0:00:37]} Kd6 {[%emt 0:01:19]} 55. a5 {[%emt 0:00:27]} Kd5 {[%emt 0:00:04]} 56. b4 {[%emt 0:00:00]} Kc6 {[%emt 0:00:28]} 1-0

[Event "GER-chT Youth Countries 2018"]
[Site "Wurzburg"]
[Date "2018.10.05"]
[Round "4"]
[White "Richter, Leonard"]
[Black "Sawlin, Leonid"]
[Result "0-1"]
[ECO "C17"]
[WhiteElo "2322"]
[BlackElo "2360"]
[Annotator "NA"]
[PlyCount "136"]
[EventDate "2018.10.03"]
[EventType "team-tourn"]
[EventCountry "GER"]
[SourceTitle "playchess.com"]
[Source "ChessBase"]
[SourceQuality "1"]
[TimeControl "40/5400+30:1800+30"]

1. e4 {[%emt 0:00:00]} e6 {[%emt 0:00:00]} 2. d4 {[%emt 0:00:00]} d5 {[%emt 0:00:00]} 3. Nc3 {[%emt 0:00:00]} Bb4 {[%emt 0:00:00]} 4. e5 {[%emt 0:00:05]} c5 {[%emt 0:00:18]} 5. dxc5 {[%emt 0:00:18]} Qc7 {[%emt 0:02:02]} 6. Nf3 {[%emt 0:02:53]} Nc6 $11 {[%emt 0:00:23]} 7. Bb5 {[%emt 0:18:49]} Nge7 {[%emt 0:02:37]} 8. O-O {[%emt 0:01:25]} Bd7 {[%emt 0:02:57]} 9. Be3 {[%emt 0:08:33]} Nf5 {[%emt 0:03:41]} 10. Qd3 {[%emt 0:14:01]} O-O {[%emt 0:06:23]} 11. Bxc6 {[%emt 0:05:11]} Bxc6 {[%emt 0:04:15]} 12. a3 {[%emt 0:03:23]} Nxe3 {[%emt 0:01:46]} 13. Qxe3 {[%emt 0:04:44]} Bxc3 {[%emt 0:00:36]} 14. Qxc3 {[%emt 0:00:05]} Bb5 {[%emt 0:00:21]} 15. Rfe1 {[%emt 0:00:52]} Rfc8 {[%emt 0:00:14]} 16. b4 {[%emt 0:01:14]} b6 {[%emt 0:00:28]} 17. Nd4 {[%emt 0:03:41]} Ba4 {[%emt 0:00:07]} 18. c6 {[%emt 0:01:05]} Bxc6 {[%emt 0:00:43]} 19. Re3 {[%emt 0:05:49]} Ba4 {[%emt 0:00:59]} 20. Qxc7 {[%emt 0:00:08]} Rxc7 {[%emt 0:00:08]} 21. c3 {[%emt 0:00:12]} Rac8 {[%emt 0:00:15]} 22. Rc1 {[%emt 0:00:28]} Rc4 {[%emt 0:00:06]} 23. Ne2 {[%emt 0:05:21]} Kf8 {[%emt 0:01:43]} 24. Kf1 {[%emt 0:03:47]} a5 {[%emt 0:00:37]} 25. Ke1 {[%emt 0:01:35]} Rg4 {[%emt 0:01:19]} 26. g3 {[%emt 0:01:28]} d4 {[%emt 0:00:31]} 27. cxd4 {[%emt 0:10:50]} Rxc1+ {[%emt 0:00:09]} 28. Nxc1 {[%emt 0:00:03]} Rxd4 {[%emt 0:00:04]} 29. Nb3 {[%emt 0:02:53]} Rd5 {[%emt 0:00:10]} 30. Nd2 {[%emt 0:02:08]} axb4 {[%emt 0:00:09]} 31. axb4 {[%emt 0:00:05]} Rb5 {[%emt 0:00:03]} 32. Re4 {[%emt 0:02:24]} Bc2 {[%emt 0:00:03]} 33. Re3 {[%emt 0:00:55]} Rxb4 {[%emt 0:00:11]} 34. Rc3 {[%emt 0:00:15]} Ba4 {[%emt 0:00:31]} 35. Rc7 {[%emt 0:00:49]} Bb5 {[%emt 0:01:24]} 36. f3 {[%emt 0:00:51]} Bd3 {[%emt 0:02:03]} 37. Kf2 {[%emt 0:00:34]} Rd4 {[%emt 0:00:40]} 38. Rb7 {[%emt 0:00:52]} Bg6 {[%emt 0:02:49]} 39. Ke3 {[%emt 0:00:13]} Rd3+ {[%emt 0:00:16]} 40. Ke2 {[%emt 0:00:08]} Rd5 {[%emt 0:00:07]} 41. f4 {[%emt 0:09:52]} b5 {[%emt 0:01:22]} 42. Nf3 {[%emt 0:07:07]} Ke8 {[%emt 0:04:03]} 43. Ke3 {[%emt 0:04:27]} Rd3+ {[%emt 0:03:28]} 44. Kf2 {[%emt 0:00:13]} Be4 {[%emt 0:01:08]} 45. Rb8+ {[%emt 0:00:21]} Ke7 {[%emt 0:00:23]} 46. Ng5 {[%emt 0:01:58]} Bd5 {[%emt 0:02:56]} 47. Rxb5 {[%emt 0:05:00]} h6 {[%emt 0:00:52]} 48. Nh3 {[%emt 0:00:06]} Rd2+ {[%emt 0:00:10]} 49. Ke3 {[%emt 0:01:20]} Rxh2 {[%emt 0:00:12]} 50. Nf2 {[%emt 0:01:22]} Rg2 {[%emt 0:00:28]} 51. Ne4 {[%emt 0:01:36]} g6 {[%emt 0:05:25]} 52. Nf6 {[%emt 0:01:33]} Rxg3+ {[%emt 0:00:14]} 53. Kd4 {[%emt 0:00:24]} Rf3 {[%emt 0:00:31]} 54. Nxd5+ {[%emt 0:01:52]} exd5 {[%emt 0:00:05]} 55. Kxd5 {[%emt 0:00:04]} Rxf4 {[%emt 0:00:11]} 56. Rb7+ {[%emt 0:00:43]} Kf8 {[%emt 0:00:01]} 57. Rb8+ {[%emt 0:00:52]} Kg7 {[%emt 0:00:02]} 58. Rb7 {[%emt 0:00:23]} Rf5 {[%emt 0:00:07]} 59. Ke4 {[%emt 0:00:45]} Rf1 {[%emt 0:00:07]} 60. Kd5 {[%emt 0:00:43]} Re1 {[%emt 0:00:21]} 61. Rb2 {[%emt 0:00:35]} g5 {[%emt 0:00:40]} 62. Rg2 {[%emt 0:00:26]} Rf1 {[%emt 0:01:06]} 63. Rg3 {[%emt 0:00:43]} Kg6 {[%emt 0:00:06]} 64. Ke4 {[%emt 0:00:26]} h5 {[%emt 0:00:34]} 65. Ra3 {[%emt 0:00:16]} h4 {[%emt 0:00:07]} 66. Ra8 {[%emt 0:00:55]} Kg7 {[%emt 0:00:07]} 67. Ra7 {[%emt 0:00:31]} h3 {[%emt 0:00:02]} 68. e6 {[%emt 0:00:04]} h2 {[%emt 0:00:09]} 0-1

[Event "GER-chT Youth Countries 2018"]
[Site "Wurzburg"]
[Date "2018.10.05"]
[Round "4"]
[White "Niermann, Tristan"]
[Black "Parvanyan, Ashot"]
[Result "0-1"]
[ECO "E64"]
[WhiteElo "2307"]
[BlackElo "2428"]
[Annotator "NA"]
[PlyCount "68"]
[EventDate "2018.10.03"]
[EventType "team-tourn"]
[EventCountry "GER"]
[SourceTitle "playchess.com"]
[Source "ChessBase"]
[SourceQuality "1"]
[TimeControl "40/5400+30:1800+30"]

1. d4 {[%emt 0:00:00]} Nf6 {[%emt 0:00:00]} 2. c4 {[%emt 0:00:00]} g6 {[%emt 0:00:00]} 3. g3 {[%emt 0:00:00]} Bg7 {[%emt 0:00:03]} 4. Bg2 {[%emt 0:00:00]} O-O {[%emt 0:00:09]} 5. Nc3 {[%emt 0:00:00]} d6 {[%emt 0:00:16]} 6. Nf3 {[%emt 0:00:01]} c5 {[%emt 0:00:49]} 7. d5 {[%emt 0:00:06]} e5 {[%emt 0:00:19]} 8. e4 {[%emt 0:03:23]} Nbd7 {[%emt 0:03:25]} 9. O-O {[%emt 0:00:39] LiveBook: 28 Games} a6 {[%emt 0:00:09]} 10. a4 {[%emt 0:02:16]} Ne8 {[%emt 0:00:15]} 11. Ne1 $14 {[%emt 0:07:24]} f5 {[%emt 0:00:13]} 12. Nd3 {[%emt 0:02:14]} Nef6 {[%emt 0:00:50]} 13. Qe2 {[%emt 0:14:12]} f4 {[%emt 0:25:42]} 14. gxf4 {[%emt 0:12:56]} Nh5 {[%emt 0:00:09]} 15. f5 {[%emt 0:19:32]} Qh4 {[%emt 0:00:15]} 16. Be3 {[%emt 0:13:21]} gxf5 {[%emt 0:08:51]} 17. f4 {[%emt 0:04:11]} fxe4 {[%emt 0:18:36]} 18. Nxe4 {[%emt 0:00:14]} Nxf4 {[%emt 0:00:36]} 19. Bxf4 {[%emt 0:01:30]} exf4 {[%emt 0:00:05]} 20. Nxd6 {[%emt 0:01:26]} Bd4+ {[%emt 0:01:29]} 21. Kh1 {[%emt 0:00:11]} Be3 {[%emt 0:00:42]} 22. Rg1 {[%emt 0:04:41]} Kh8 {[%emt 0:02:53]} 23. Raf1 {[%emt 0:03:37]} Qh6 {[%emt 0:07:31]} 24. Nxc8 {[%emt 0:05:05]} Raxc8 {[%emt 0:00:16]} 25. Nf2 {[%emt 0:01:14]} Ne5 {[%emt 0:05:24]} 26. Be4 {[%emt 0:01:47]} f3 {[%emt 0:02:27]} 27. Qc2 {[%emt 0:00:46]} Rf4 {[%emt 0:04:17]} 28. Qc3 {[%emt 0:01:48]} Bd4 {[%emt 0:00:37]} 29. Qc1 {[%emt 0:00:17]} Qh4 {[%emt 0:00:57]} 30. Bb1 {[%emt 0:01:01]} Bxf2 {[%emt 0:11:13]} 31. Rxf2 {[%emt 0:00:11]} Ng4 {[%emt 0:00:11]} 32. Qc3+ {[%emt 0:00:50]} Rd4 {[%emt 0:00:09]} 33. Rxg4 {[%emt 0:00:59]} Qxf2 {[%emt 0:00:37]} 34. Bf5 {[%emt 0:00:29]} Rg8 {[%emt 0:01:14]} 0-1